bitfinex-derivatives/quotes_BTCF0:USTF0_20251120
["timestamp","ask_amount","ask_price","bid_price","bid_amount"]
[1763662103498,0.09352803,87407.0,87406.0,0.0114534]
[1763662103792,0.11793,87405.0,87396.0,0.00017165]
[1763662103995,0.00219803,87397.0,87396.0,0.10207635]
[1763662104296,0.04749803,87397.0,87396.0,0.01162635]
[1763662104591,0.09352803,87397.0,87396.0,0.01162635]
[1763662104998,0.00219803,87397.0,87396.0,0.10207635]
[1763662107584,0.0453,87407.0,87406.0,0.0114533]
[1763662107788,0.09352803,87407.0,87403.0,0.0114535]
[1763662107988,0.09133,87397.0,87396.0,0.01162635]
[1763662108190,0.00219803,87397.0,87396.0,0.10207635]
[1763662108395,0.00017165,87413.0,87396.0,0.10207635]
[1763662108396,0.00017165,87413.0,87412.0,0.1019026]
[1763662108594,0.04766968,87413.0,87412.0,0.04449]
[1763662108792,0.09369968,87413.0,87400.0,0.14754778]
[1763662108995,0.0453,87408.0,87400.0,0.14754778]
[1763662109194,0.00219803,87407.0,87405.0,0.0114535]
[1763662109499,0.00219803,87407.0,87406.0,0.09045]
[1763662109995,0.00017165,87413.0,87412.0,0.0114526]
[1763662110195,0.061353,87432.0,87424.0,0.0923911]
[1763662110401,0.00219803,87439.0,87433.0,0.0399]
[1763662110697,0.10022031,87439.0,87438.0,0.0114492]
[1763662111113,0.00219803,87439.0,87438.0,0.0923892]
[1763662111299,0.00219803,87439.0,87430.0,0.00017155]
[1763662111492,0.00219803,87439.0,87435.0,0.0114496]
[1763662111799,0.04289,87436.0,87435.0,0.0114496]
[1763662112003,0.04508803,87436.0,87435.0,0.0114496]
[1763662112202,0.00219803,87436.0,87435.0,0.0114496]
[1763662112698,0.00219803,87436.0,87435.0,0.0514996]
[1763662112898,0.01508742,87443.0,87442.0,0.0514987]
[1763662113205,0.01508742,87443.0,87442.0,0.0908687]
[1763662113206,0.00219803,87443.0,87442.0,0.0908687]
[1763662114504,0.00219803,87443.0,87442.0,0.0114487]
[1763662114505,0.08273803,87443.0,87442.0,0.0114487]
[1763662114704,0.00219803,87443.0,87442.0,0.0908687]
[1763662115596,0.04258803,87443.0,87430.0,0.14771933]
[1763662115999,0.04258803,87443.0,87430.0,0.00017155]
[1763662116199,0.08054,87440.0,87430.0,0.00017155]
[1763662116500,0.00219803,87431.0,87430.0,0.05167185]
[1763662116891,0.08273803,87431.0,87430.0,0.00017155]
[1763662118103,0.12384459,87431.0,87410.0,0.14754778]
[1763662118295,0.12384459,87431.0,87405.0,0.0524]
[1763662118296,0.08054,87418.0,87417.0,0.011452]
[1763662118609,0.00219803,87418.0,87417.0,0.051502]
[1763662118994,0.00219803,87418.0,87417.0,0.090872]
[1763662120206,0.04258803,87418.0,87417.0,0.090872]
[1763662120499,0.04258803,87418.0,87417.0,0.011452]
[1763662121296,0.04258803,87418.0,87417.0,0.090872]
[1763662121297,0.00219803,87418.0,87417.0,0.090872]
[1763662121902,0.00017155,87426.0,87425.0,0.0908709]
[1763662123402,0.04110656,87442.0,87441.0,0.04005]
[1763662123605,0.04110656,87449.0,87446.0,0.0908682]
[1763662123910,0.00219803,87447.0,87446.0,0.0908682]
[1763662124205,0.08054,87442.0,87420.0,0.0114515]
[1763662124401,0.04110656,87438.0,87420.0,0.14754778]
[1763662124597,0.00219803,87437.0,87428.0,0.14754778]
[1763662124794,0.08054,87434.0,87433.0,0.0114497]
[1763662125006,0.00219803,87434.0,87433.0,0.0514997]
[1763662125203,0.00017155,87440.0,87439.0,0.0114491]
[1763662125510,0.00236958,87440.0,87439.0,0.0908691]
[1763662125707,0.00017155,87440.0,87439.0,0.0908691]
[1763662125904,0.00236958,87440.0,87439.0,0.0908691]
[1763662126301,0.00236958,87440.0,87430.0,0.17230778]
[1763662126302,0.04039,87437.0,87436.0,0.0114495]
[1763662126503,0.00017155,87440.0,87439.0,0.0908691]
[1763662128110,0.00017155,87440.0,87420.0,0.14771933]
[1763662128111,0.0247,87430.0,87420.0,0.00017155]
[1763662128408,0.08273803,87421.0,87420.0,0.00017155]
[1763662129514,0.08273803,87421.0,87420.0,0.01162315]
[1763662130200,0.08273803,87421.0,87420.0,0.00017155]
[1763662130403,0.00219803,87421.0,87420.0,0.07959155]
[1763662132815,0.09283339,87435.0,87420.0,0.00017155]
[1763662133110,0.00219803,87430.0,87423.0,0.0114511]
[1763662133314,0.00219803,87430.0,87425.0,0.0114508]
[1763662133514,0.08054,87428.0,87427.0,0.0114506]
[1763662133717,0.08273803,87428.0,87424.0,0.011451]
[1763662134108,0.04039,87425.0,87424.0,0.011451]
[1763662134302,0.04258803,87425.0,87424.0,0.011451]
[1763662135108,0.00219803,87425.0,87424.0,0.07942]
[1763662136812,0.04110656,87437.0,87436.0,0.07942]
[1763662137014,0.00017155,87440.0,87435.0,0.0114496]
[1763662137015,0.00017155,87440.0,87439.0,0.0908691]
[1763662138618,0.04110656,87461.0,87457.0,0.0114467]
[1763662138821,0.09784367,87458.0,87457.0,0.0114467]
[1763662139216,0.09784367,87458.0,87457.0,0.0514967]
[1763662139717,0.00219803,87458.0,87457.0,0.0908667]
[1763662140120,0.04258803,87458.0,87457.0,0.0908667]
[1763662140318,0.08054,87450.0,87449.0,0.00017155]
[1763662140522,0.08273803,87450.0,87449.0,0.00017155]
[1763662140714,0.08273803,87450.0,87424.0,0.06181765]
[1763662140715,0.08273803,87450.0,87435.0,0.0114496]
[1763662141022,0.08273803,87450.0,87411.0,0.0114527]
[1763662141023,0.04039,87429.0,87421.0,0.03069558]
[1763662141234,0.08054,87427.0,87426.0,0.0114507]
[1763662141523,0.04039,87424.0,87423.0,0.0114511]
[1763662141722,0.08054,87422.0,87421.0,0.0114514]
[1763662142022,0.08273803,87422.0,87421.0,0.0114514]
[1763662142318,0.00017155,87432.0,87431.0,0.0879301]
[1763662142510,0.00017155,87432.0,87431.0,0.09012813]
[1763662142717,0.04110656,87453.0,87451.0,0.07648]
[1763662142911,0.00073267,87453.0,87452.0,0.03933803]
[1763662143119,0.07826267,87453.0,87452.0,0.00219803]
[1763662143822,0.00073267,87453.0,87452.0,0.03933803]
[1763662144121,0.00017155,87461.0,87452.0,0.03933803]
[1763662144122,0.00017155,87461.0,87460.0,0.03714]
[1763662144316,5e-08,87461.0,87460.0,0.07867803]
[1763662144722,0.04110656,87482.0,87460.0,0.00219803]
[1763662144920,0.00073267,87480.0,87460.0,0.14974581]
[1763662145120,0.00073267,87480.0,87470.0,0.011445]
[1763662145422,0.03757,87453.0,87452.0,0.03069558]
[1763662145621,0.07826267,87453.0,87452.0,0.00219803]
[1763662146313,0.07753,87445.0,87444.0,0.00017155]
[1763662146524,0.07826267,87445.0,87444.0,0.00236958]
[1763662146717,0.07826267,87445.0,87444.0,0.00017155]
[1763662146916,0.07826267,87445.0,87444.0,0.00236958]
[1763662147424,0.07826267,87445.0,87415.0,0.03069558]
[1763662147425,0.03757,87422.0,87415.0,0.03069558]
[1763662147623,0.07826267,87421.0,87420.0,0.0114515]
[1763662147921,0.07826267,87421.0,87420.0,0.01364953]
[1763662148516,0.03830267,87421.0,87420.0,0.01364953]
[1763662148919,0.00017155,87429.0,87428.0,0.0879305]
[1763662149124,0.16874778,87450.0,87428.0,0.0879305]
[1763662149125,0.04110656,87445.0,87442.0,0.0114487]
[1763662149328,0.07826267,87445.0,87444.0,0.00219803]
[1763662149523,0.07826267,87445.0,87444.0,0.00189803]
[1763662149822,0.09318294,87445.0,87444.0,0.00189803]
[1763662150224,0.07826267,87445.0,87444.0,0.00189803]
[1763662150426,0.03830267,87445.0,87444.0,0.00189803]
[1763662150929,0.00073267,87445.0,87444.0,0.03903803]
[1763662151130,0.00073267,87445.0,87444.0,0.07837803]
[1763662151430,0.00017155,87453.0,87452.0,0.0879274]
[1763662151625,0.00120422,87453.0,87452.0,0.08982543]
[1763662151824,0.00017155,87453.0,87452.0,0.08982543]
[1763662152025,0.04110656,87471.0,87470.0,0.03714]
[1763662152228,0.04110656,87479.0,87478.0,0.011444]
[1763662152427,0.00103267,87479.0,87478.0,0.08982203]
[1763662152619,0.0212,87495.0,87490.0,0.0114424]
[1763662152620,0.04110656,87491.0,87490.0,0.0114424]
[1763662152819,0.04110656,87499.0,87498.0,0.0879214]
[1763662153022,0.00103267,87509.0,87506.0,0.03714]
[1763662153233,0.07753,87508.0,87507.0,0.00189803]
[1763662153422,0.07856267,87508.0,87490.0,0.00017144]
[1763662153623,0.07856267,87508.0,87491.0,0.00189803]
[1763662153624,0.07753,87492.0,87491.0,0.00189803]
[1763662153929,0.07856267,87492.0,87491.0,0.00189803]
[1763662154129,0.07856267,87492.0,87490.0,0.00017144]
[1763662154130,0.07753,87491.0,87490.0,0.00017144]
[1763662154327,0.07956267,87491.0,87490.0,0.00017144]
[1763662155323,0.12066923,87491.0,87471.0,0.0114448]
[1763662155523,0.12066923,87491.0,87476.0,0.0114442]
[1763662155718,0.12066923,87491.0,87472.0,0.00189803]
[1763662155719,0.00203267,87491.0,87477.0,0.00189803]
[1763662156032,0.03757,87478.0,87477.0,0.00189803]
[1763662156234,0.07856267,87478.0,87477.0,0.00189803]
[1763662156440,0.07753,87470.0,87436.0,0.03069558]
[1763662156728,0.07753,87438.0,87414.0,0.0174]
[1763662156932,0.00103267,87437.0,87415.0,0.00189803]
[1763662157136,0.03757,87428.0,87427.0,0.0114507]
[1763662157325,0.00103267,87428.0,87427.0,0.01334873]
[1763662157522,0.00103267,87428.0,87427.0,0.00189803]
[1763662159538,0.00103267,87428.0,87427.0,0.03903803]
[1763662161238,0.00017154,87436.0,87435.0,0.0114496]
[1763662161439,0.00120421,87436.0,87435.0,0.08982763]
[1763662161734,0.09160243,87458.0,87435.0,0.40189803]
[1763662161940,0.07753,87456.0,87455.0,0.011447]
[1763662162141,0.04110656,87464.0,87433.0,0.0114499]
[1763662162142,0.03757,87464.0,87463.0,0.0114459]
[1763662162438,0.07856267,87464.0,87463.0,0.01334393]
[1763662162642,0.04110656,87472.0,87471.0,0.0114449]
[1763662162933,0.00120421,87472.0,87471.0,0.03903803]
[1763662163140,0.07873421,87472.0,87471.0,0.00189803]
[1763662163642,0.07873421,87472.0,87455.0,0.00017154]
[1763662163643,0.07753,87456.0,87455.0,0.00017154]
[1763662163941,0.07856267,87456.0,87455.0,0.00206957]
[1763662165329,0.00103267,87456.0,87455.0,0.03920957]
[1763662165530,0.07856267,87456.0,87455.0,0.00206957]
[1763662165734,0.07856267,87456.0,87455.0,1.54e-06]
[1763662165925,0.07856267,87456.0,87424.0,0.03069558]
[1763662165926,0.03757,87438.0,87424.0,0.03069558]
[1763662166131,0.03757,87438.0,87436.0,0.00189803]
[1763662166132,0.07753,87437.0,87436.0,0.00189803]
[1763662166428,0.04094973,87466.0,87436.0,0.01334753]
[1763662166724,0.07753,87463.0,87444.0,0.0114484]
[1763662166927,0.09183095,87474.0,87459.0,0.0114464]
[1763662166928,0.00120421,87462.0,87459.0,0.0114464]
[1763662167132,0.00120421,87462.0,87461.0,0.00189803]
[1763662167526,0.00017154,87462.0,87461.0,0.07837803]
[1763662169941,0.03877421,87462.0,87461.0,0.00189803]
[1763662170132,0.00017154,87462.0,87461.0,0.07837803]
[1763662170530,0.13303531,87493.0,87476.0,0.0114442]
[1763662170740,0.00103267,87477.0,87476.0,0.00189803]
[1763662170939,0.07856267,87477.0,87476.0,0.00189803]
[1763662171630,0.09261644,87477.0,87476.0,0.01334223]
[1763662172135,0.01508644,87477.0,87476.0,0.08353223]
[1763662172332,4e-08,87485.0,87484.0,0.0782432]
[1763662172638,4e-08,87485.0,87484.0,0.08014123]
[1763662179443,0.06718,87509.0,87508.0,0.01144]
[1763662179745,0.06821267,87509.0,87508.0,0.00189803]
[1763662179944,0.08239722,87509.0,87508.0,0.00189803]
[1763662180642,0.06135051,87528.0,87508.0,0.00189803]
[1763662180643,6e-08,87526.0,87523.0,0.0114381]
[1763662180940,0.06718,87533.0,87532.0,0.00189803]
[1763662181131,0.00103267,87533.0,87532.0,0.06869803]
[1763662181340,0.01421338,87554.0,87532.0,0.00189803]
[1763662181646,0.06718,87551.0,87534.0,0.00017134]
[1763662181846,0.06718,87543.0,87542.0,0.0114356]
[1763662182141,0.06718,87543.0,87542.0,0.01363363]
[1763662182444,0.06718,87543.0,87542.0,0.00219803]
[1763662182837,0.06718,87535.0,87534.0,0.00017134]
[1763662183048,0.08692,87520.0,87519.0,0.0111385]
[1763662183344,0.06718,87532.0,87519.0,0.00219803]
[1763662183544,0.06718,87531.0,87530.0,0.0114371]
[1763662183744,0.06718,87531.0,87530.0,0.01363513]
[1763662184945,0.00017101,87539.0,87535.0,0.0114365]
[1763662185148,0.00017101,87539.0,87538.0,0.00219803]
[1763662185443,0.00017101,87539.0,87538.0,0.01363413]
[1763662185643,0.06735101,87539.0,87538.0,0.01363413]
[1763662186246,0.00017101,87539.0,87538.0,0.01363413]
[1763662186441,0.00017101,87539.0,87538.0,0.04752413]
[1763662186647,0.00017101,87539.0,87522.0,0.00017134]
[1763662186648,0.06718,87523.0,87522.0,0.00017134]
[1763662186840,0.00219803,87523.0,87522.0,0.00090401]
[1763662187141,0.00219803,87523.0,87522.0,0.07914221]
[1763662187342,0.00017101,87539.0,87522.0,0.07914221]
[1763662187343,0.00017101,87539.0,87536.0,0.0114364]
[1763662187542,0.00219803,87538.0,87537.0,0.0668]
[1763662187745,0.00017101,87539.0,87538.0,0.0782361]
[1763662187746,1e-08,87539.0,87538.0,0.0782361]
[1763662187941,1e-08,87539.0,87538.0,0.07896877]
[1763662189142,1e-08,87539.0,87533.0,0.01374]
[1763662189143,0.06718,87523.0,87520.0,0.0114385]
[1763662189445,0.06937803,87523.0,87507.0,0.0114401]
[1763662189644,0.03636803,87523.0,87522.0,0.00090401]
[1763662189849,0.06937803,87523.0,87522.0,0.00090401]
[1763662190141,0.06937803,87523.0,87522.0,0.00017134]
[1763662190348,0.06937803,87523.0,87501.0,0.0114409]
[1763662190540,0.06718,87512.0,87502.0,0.00073267]
[1763662190746,0.24695744,87532.0,87503.0,0.0114406]
[1763662190747,0.06937803,87511.0,87503.0,0.0114406]
[1763662190941,0.03417,87505.0,87504.0,0.01217327]
[1763662191149,0.06937803,87505.0,87504.0,0.00073267]
[1763662192649,0.00219803,87505.0,87504.0,0.00073267]
[1763662192951,0.00219803,87505.0,87504.0,0.06753267]
[1763662193250,0.00017134,87513.0,87505.0,0.0114405]
[1763662193443,0.00236937,87513.0,87512.0,0.01217217]
[1763662194050,0.08692,87533.0,87532.0,0.0114369]
[1763662194252,0.08911803,87533.0,87532.0,0.01216957]
[1763662194854,0.03636803,87533.0,87532.0,0.01216957]
[1763662195151,0.00219803,87533.0,87532.0,0.01216957]
[1763662195353,0.00219803,87533.0,87532.0,0.07896957]
[1763662195850,0.00219803,87533.0,87532.0,0.01216957]
[1763662196046,0.03736803,87533.0,87532.0,0.01216957]
[1763662196654,0.00319803,87533.0,87532.0,0.01216957]
[1763662196857,0.00219803,87533.0,87532.0,0.01216957]
[1763662197050,0.00319803,87533.0,87532.0,0.01216957]
[1763662197543,0.06718,87525.0,87524.0,0.00017134]
[1763662197748,0.001,87533.0,87524.0,0.00236933]
[1763662197945,0.00075415,87533.0,87532.0,0.0782369]
[1763662198144,0.00075415,87533.0,87532.0,0.08043489]
[1763662198546,0.01381928,87551.0,87550.0,0.0114346]
[1763662198547,0.08099928,87551.0,87550.0,0.0114346]
[1763662198748,0.08173198,87551.0,87550.0,0.01363259]
[1763662198947,0.0007327,87551.0,87550.0,0.01363259]
[1763662199144,0.0679127,87551.0,87550.0,0.01363259]
[1763662199852,0.0349027,87551.0,87550.0,0.01363259]
[1763662200057,0.0349027,87551.0,87542.0,0.01160694]
[1763662200058,0.06718,87543.0,87542.0,0.01160694]
[1763662200351,0.06718,87543.0,87510.0,0.057199]
[1763662200352,0.06718,87525.0,87524.0,0.0114379]
[1763662200561,0.0679127,87525.0,87524.0,0.01363589]
[1763662200852,0.01974,87550.0,87524.0,0.01363589]
[1763662200853,0.06718,87541.0,87537.0,0.0114362]
[1763662201152,0.06718,87552.0,87551.0,0.0114344]
[1763662201352,0.06718,87545.0,87544.0,0.0114354]
[1763662201550,0.00017134,87560.0,87553.0,0.0114342]
[1763662201753,0.00017134,87560.0,87559.0,0.0782334]
[1763662201955,0.06135051,87599.0,87559.0,0.00219799]
[1763662202255,0.2055844,87633.0,87582.0,0.0779003]
[1763662202256,0.01434414,87589.0,87582.0,0.0779003]
[1763662202454,0.01857,87601.0,87588.0,0.00219799]
[1763662202647,0.0007327,87600.0,87596.0,0.0114286]
[1763662202853,0.06678,87598.0,87597.0,0.00219799]
[1763662203156,0.05957821,87590.0,87589.0,1.24e-06]
[1763662203357,0.0353627,87590.0,87571.0,0.01362979]
[1763662203556,0.0353627,87590.0,87571.0,1.51362979]
[1763662203853,0.0353627,87590.0,87571.0,0.00219799]
[1763662204054,0.03215,87572.0,87571.0,0.00219799]
[1763662204249,0.03215,87572.0,87546.0,0.03034874]
[1763662204250,0.03215,87564.0,87563.0,0.00017124]
[1763662204448,0.0675127,87564.0,87563.0,0.00236923]
[1763662204650,0.0675127,87564.0,87533.0,0.01561176]
[1763662204951,0.0328827,87564.0,87557.0,0.0114336]
[1763662205252,0.0675127,87564.0,87535.0,0.0114365]
[1763662205557,0.06678,87541.0,87540.0,0.00219799]
[1763662205752,0.0675127,87541.0,87540.0,0.00219799]
[1763662206143,0.08167762,87541.0,87540.0,0.00219799]
[1763662206455,0.06678,87534.0,87533.0,0.00010176]
[1763662206658,0.0675127,87534.0,87533.0,0.00229975]
[1763662206844,0.0007327,87534.0,87533.0,0.00229975]
[1763662207250,0.0675127,87534.0,87533.0,0.00229975]
[1763662207649,0.06678,87524.0,87514.0,0.0114392]
[1763662207850,0.06678,87524.0,87500.0,0.96771744]
[1763662207851,0.06678,87524.0,87516.0,0.011439]
[1763662208050,0.06678,87518.0,87517.0,0.00219799]
[1763662208245,0.0675127,87518.0,87517.0,0.00219799]
[1763662208447,0.0675127,87518.0,87517.0,0.01363689]
[1763662208669,0.06761446,87518.0,87517.0,0.00219799]
[1763662209058,0.06678,87510.0,87509.0,0.00017135]
[1763662209359,0.06759317,87510.0,87509.0,0.00017135]
[1763662209547,0.00081317,87510.0,87509.0,0.00236934]
[1763662209751,0.03296317,87510.0,87509.0,0.00236934]
[1763662210057,0.06759317,87510.0,87509.0,0.00236934]
[1763662210654,0.03296317,87510.0,87509.0,0.00236934]
[1763662210852,0.06759317,87510.0,87509.0,0.00017135]
[1763662211051,0.06759317,87510.0,87480.0,0.26607744]
[1763662211258,0.06678,87500.0,87499.0,0.0114412]
[1763662211458,0.06761446,87500.0,87499.0,0.00219799]
[1763662212958,0.06678,87492.0,87491.0,0.00017135]
[1763662213262,0.06761446,87492.0,87491.0,0.00236934]
[1763662213659,0.03298446,87492.0,87491.0,0.00236934]
[1763662213856,0.00010176,87492.0,87491.0,0.06661934]
[1763662214168,0.08180068,87514.0,87491.0,0.06661934]
[1763662214169,0.08180068,87529.0,87502.0,0.0114408]
[1763662214350,0.06678,87527.0,87521.0,0.0114383]
[1763662214661,0.06678,87520.0,87506.0,0.24695744]
[1763662214963,0.06678,87508.0,87507.0,0.01363819]
[1763662215266,0.0675127,87508.0,87507.0,0.01363819]
[1763662215562,0.0675127,87508.0,87478.0,0.03034874]
[1763662215563,0.06678,87500.0,87478.0,0.03034874]
[1763662215865,0.08535,87498.0,87497.0,0.0114415]
[1763662216177,0.00219803,87498.0,87497.0,0.0114415]
[1763662216356,0.00219803,87498.0,87485.0,0.011443]
[1763662216562,0.06678,87508.0,87507.0,0.0114402]
[1763662216762,0.06897803,87508.0,87507.0,0.0114402]
[1763662217065,0.06678,87500.0,87499.0,0.00017145]
[1763662217367,0.06897803,87500.0,87499.0,1.45e-06]
[1763662217562,0.05072,87480.0,87479.0,0.0114438]
[1763662217757,0.08754803,87480.0,87479.0,0.0114438]
[1763662218063,0.08754803,87480.0,87479.0,1.5114438]
[1763662218261,0.08754803,87480.0,87479.0,0.0114438]
[1763662218458,0.06678,87476.0,87471.0,0.00017145]
[1763662218662,0.02076803,87480.0,87463.0,0.01159089]
[1763662218663,0.06678,87464.0,87463.0,0.01159089]
[1763662218868,0.06678,87464.0,87463.0,0.00014499]
[1763662218869,0.06897803,87464.0,87463.0,0.00014499]
[1763662219757,0.01411231,87510.0,87509.0,0.0114399]
[1763662220066,0.06678,87510.0,87509.0,0.01363793]
[1763662220358,0.06678,87506.0,87482.0,0.0114434]
[1763662220564,0.06678,87492.0,87491.0,0.01364033]
[1763662222367,0.06678,87472.0,87471.0,0.0114449]
[1763662222665,0.06678,87472.0,87471.0,0.01364293]
[1763662222860,0.06678,87464.0,87463.0,0.01159089]
[1763662223058,0.06678,87464.0,87463.0,0.00234302]
[1763662223456,0.00017145,87472.0,87471.0,0.0124449]
[1763662223651,0.00017145,87472.0,87471.0,0.01464293]
[1763662223858,0.03232145,87472.0,87471.0,0.01464293]
[1763662224161,0.01857,87486.0,87485.0,0.0114431]
[1763662224461,0.06678,87503.0,87485.0,0.00219803]
[1763662224650,0.03215,87495.0,87494.0,0.0114418]
[1763662224851,0.06678,87495.0,87494.0,0.00219803]
[1763662225057,0.06678,87495.0,87459.0,0.0114464]
[1763662225058,0.06897803,87495.0,87465.0,0.0114456]
[1763662225259,0.06678,87482.0,87481.0,0.0114436]
[1763662225458,0.06897803,87482.0,87481.0,0.01217627]
[1763662226059,0.06897803,87482.0,87481.0,0.00073267]
[1763662227060,0.00219803,87482.0,87481.0,0.00073267]
[1763662227661,0.00017145,87492.0,87491.0,0.0114423]
[1763662227867,0.06695145,87492.0,87491.0,0.00219803]
[1763662228367,0.06914948,87492.0,87479.0,0.0114437]
[1763662228564,0.06678,87481.0,87480.0,0.00073264]
[1763662228764,0.06897803,87481.0,87480.0,0.00073264]
[1763662229362,0.00219803,87481.0,87480.0,0.00073264]
[1763662229558,0.00017145,87492.0,87491.0,0.0114423]
[1763662229760,0.00017145,87492.0,87491.0,0.01217494]
[1763662229959,0.14724753,87530.0,87506.0,0.0114403]
[1763662230155,0.06772,87520.0,87507.0,0.0114402]
[1763662230465,0.06991803,87520.0,87519.0,0.01217124]
[1763662230672,0.06991803,87520.0,87519.0,0.00073264]
[1763662230966,0.06772,87512.0,87511.0,1.50017145]
[1763662231265,0.06991803,87512.0,87511.0,0.00090409]
[1763662231466,0.00219803,87512.0,87511.0,0.00090409]
[1763662231967,0.00219803,87512.0,87502.0,0.0114408]
[1763662231968,0.06772,87505.0,87502.0,0.0114408]
[1763662232269,0.03573803,87503.0,87490.0,0.14724753]
[1763662232461,0.03573803,87503.0,87500.0,0.0114411]
[1763662232462,0.00219803,87503.0,87500.0,0.0114411]
[1763662232974,0.01954,87500.0,87493.0,0.00017145]
[1763662233265,0.03266,87485.0,87484.0,0.0114432]
[1763662233469,0.03485803,87485.0,87484.0,0.0114432]
[1763662233766,0.06682,87481.0,87467.0,1.5]
[1763662234068,0.00219803,87480.0,87467.0,1.5]
[1763662234367,0.03266,87468.0,87465.0,0.00011455]
[1763662234562,0.00219803,87466.0,87465.0,0.00011455]
[1763662234963,0.00017145,87482.0,87466.0,0.0114455]
[1763662235166,0.00219803,87481.0,87470.0,0.14724753]
[1763662235363,0.00219803,87481.0,87469.0,0.0114451]
[1763662235566,0.00219803,87481.0,87471.0,0.0114448]
[1763662235962,0.00219803,87481.0,87465.0,0.00011455]
[1763662235963,0.01954,87480.0,87465.0,0.00011455]
[1763662236168,0.00219803,87466.0,87465.0,0.00111455]
[1763662237366,0.00219803,87466.0,87465.0,0.03540455]
[1763662237963,0.00219803,87466.0,87465.0,0.00011455]
[1763662238680,0.00017145,87482.0,87479.0,0.0114439]
[1763662238970,0.00219803,87481.0,87479.0,0.0114439]
[1763662239666,0.01590652,87481.0,87476.0,0.0114442]
[1763662239867,0.01590652,87481.0,87469.0,0.0114451]
[1763662240072,0.01590652,87481.0,87468.0,0.0114452]
[1763662240372,0.01590652,87481.0,87467.0,0.0114453]
[1763662240569,0.01590652,87481.0,87465.0,0.00111455]
[1763662240874,0.01590652,87481.0,87465.0,0.01156015]
[1763662241073,0.01590652,87481.0,87465.0,0.00011455]
[1763662241375,0.01590652,87481.0,87478.0,0.0114439]
[1763662241763,0.01590652,87481.0,87475.0,0.0114443]
[1763662241963,0.01590652,87481.0,87480.0,0.0114437]
[1763662243060,0.01590652,87481.0,87470.0,0.14724753]
[1763662243264,0.01590652,87481.0,87465.0,0.00011455]
[1763662243467,0.01590652,87481.0,87468.0,0.0114452]
[1763662243976,0.01590652,87481.0,87473.0,0.0114446]
[1763662244176,0.06682,87474.0,87473.0,0.0114446]
[1763662244477,0.00219803,87474.0,87473.0,0.0114446]
[1763662245478,0.00219803,87474.0,87473.0,0.0457346]
[1763662245674,0.00219803,87474.0,87473.0,0.0777746]
[1763662246078,0.00017145,87482.0,87481.0,0.06633]
[1763662246377,0.00236948,87482.0,87467.0,0.03025618]
[1763662246681,0.06682,87480.0,87479.0,0.0114438]
[1763662246979,0.06901803,87480.0,87479.0,0.0114438]
[1763662247368,0.00219803,87480.0,87479.0,0.0114438]
[1763662247868,0.06901803,87480.0,87479.0,0.0114438]
[1763662248376,0.06901803,87480.0,87474.0,0.0114445]
[1763662248377,0.03416,87477.0,87474.0,0.0114445]
[1763662248572,0.00219803,87475.0,87472.0,0.0114448]
[1763662248776,0.06682,87466.0,87465.0,0.00011455]
[1763662248976,0.06901803,87466.0,87465.0,0.00011455]
[1763662249375,0.06901803,87466.0,87465.0,0.01156025]
[1763662251385,0.00219803,87466.0,87465.0,0.08674455]
[1763662251595,0.01402268,87482.0,87481.0,0.0114436]
[1763662251878,0.03416,87477.0,87473.0,0.0114446]
[1763662252085,0.01402268,87482.0,87481.0,0.0114436]
[1763662252385,0.08304071,87482.0,87481.0,0.0114436]
[1763662253376,0.08304071,87482.0,87465.0,0.03037073]
[1763662253377,0.06682,87466.0,87465.0,0.00011455]
[1763662253690,0.00219803,87466.0,87465.0,0.01156025]
[1763662253884,0.03283145,87482.0,87481.0,0.0114436]
[1763662254186,0.03502948,87482.0,87481.0,0.0114436]
[1763662254383,0.00017145,87482.0,87481.0,0.0777736]
[1763662255878,0.06682,87505.0,87504.0,0.0114406]
[1763662256079,0.06901803,87505.0,87504.0,0.0114406]
[1763662256382,0.06682,87496.0,87495.0,0.0114417]
[1763662256586,0.06682,87495.0,87494.0,0.0114419]
[1763662256785,0.06901803,87495.0,87494.0,0.0114419]
[1763662256970,0.06901803,87495.0,87490.0,0.0114423]
[1763662257175,0.06682,87491.0,87490.0,0.0114423]
[1763662257480,0.06901803,87491.0,87490.0,0.0114423]
[1763662257987,0.06682,87487.0,87486.0,0.00017145]
[1763662258187,0.06682,87473.0,87472.0,0.04170098]
[1763662258482,0.06682,87473.0,87453.0,0.03025618]
[1763662258483,0.06682,87464.0,87453.0,0.03025618]
[1763662258671,0.06901803,87464.0,87461.0,0.0114462]
[1763662258877,0.00219803,87464.0,87461.0,0.0114462]
[1763662259279,0.03485803,87464.0,87461.0,0.0114462]
[1763662259479,0.06901803,87464.0,87461.0,0.0114461]
[1763662260888,0.06901803,87464.0,87463.0,0.00114499]
[1763662261084,0.00017145,87472.0,87463.0,0.06747499]
[1763662261288,0.00236948,87472.0,87471.0,0.0114449]
[1763662261486,0.06918948,87472.0,87463.0,0.00114499]
[1763662261682,0.06682,87464.0,87463.0,0.00014499]
[1763662261984,0.06901803,87464.0,87463.0,0.01159089]
[1763662262176,0.00219803,87464.0,87463.0,0.01159089]
[1763662262378,0.00017145,87472.0,87471.0,0.0451749]
[1763662262586,0.00017145,87472.0,87471.0,0.0783549]
[1763662263288,0.01339892,87505.0,87471.0,0.0783549]
[1763662263289,0.0938072,87492.0,87491.0,0.0114423]
[1763662263490,0.09600523,87492.0,87491.0,0.0114423]
[1763662263877,0.00219803,87492.0,87491.0,0.0114423]
[1763662264392,0.00219803,87492.0,87491.0,0.0451723]
[1763662264596,0.00017145,87500.0,87499.0,0.0983612]
[1763662265781,5e-08,87500.0,87499.0,0.0983612]
[1763662266086,0.03369,87519.0,87518.0,0.0114386]
[1763662266393,0.03588803,87519.0,87518.0,0.0114386]
[1763662266590,0.01563263,87519.0,87518.0,0.0114386]
[1763662266889,0.00219803,87519.0,87518.0,0.0783486]
[1763662267285,0.00017145,87527.0,87526.0,0.0114377]
[1763662267485,0.00017145,87527.0,87526.0,0.08054573]
[1763662267889,0.04100439,87554.0,87552.0,0.0114342]
[1763662268183,0.04100439,87554.0,87548.0,0.0114348]
[1763662268184,0.06653,87553.0,87548.0,0.0114348]
[1763662268381,0.00073267,87552.0,87548.0,0.0114348]
[1763662268588,0.00073267,87552.0,87551.0,0.00219803]
[1763662269584,0.00073267,87552.0,87551.0,0.03592803]
[1763662269893,0.00017135,87560.0,87559.0,0.06691]
[1763662270084,0.00017135,87560.0,87559.0,0.06910803]
[1763662270289,0.09300766,87564.0,87559.0,0.06910803]
[1763662270594,0.01958,87601.0,87571.0,0.06691]
[1763662270785,0.00073267,87600.0,87580.0,0.14724753]
[1763662270986,0.00073267,87600.0,87567.0,0.02001]
[1763662270987,0.00073267,87600.0,87599.0,0.06910803]
[1763662271290,0.08084125,87600.0,87599.0,0.00219803]
[1763662271688,0.01431125,87600.0,87599.0,0.06910803]
[1763662272185,0.14724753,87640.0,87599.0,0.06910803]
[1763662272387,0.0178,87642.0,87606.0,0.02001]
[1763662272694,0.14724753,87630.0,87607.0,0.00219803]